fUSD/lending_fUSD_20260602
["ID","MTS","AMOUNT","RATE_DAILY","PERIOD"]
[423736657,1780350641000,-956.10799372,0.00014465,2]
[423736654,1780350641000,-956.10799372,0.00014465,2]
[423736656,1780350641000,-956.10799372,0.00014465,2]
[423736651,1780350641000,-956.10799372,0.00014465,2]
[423736663,1780350641000,-956.10799372,0.00014465,2]
[423736659,1780350641000,-956.10799372,0.00014465,2]
[423736653,1780350641000,-956.10799372,0.00014465,2]
[423736661,1780350641000,-956.10799372,0.00014465,2]
[423736660,1780350641000,-956.10799372,0.00014465,2]
[423736664,1780350641000,-99.0996904,0.00014467,2]
[423736628,1780350641000,-956.10799372,0.00014465,2]
[423736658,1780350641000,-956.10799372,0.00014465,2]
[423736647,1780350641000,-956.10799372,0.00014465,2]
[423736662,1780350641000,-956.10799372,0.00014465,2]
[423736650,1780350641000,-956.10799372,0.00014465,2]
[423736632,1780350641000,-956.10799372,0.00014465,2]
[423736648,1780350641000,-956.10799372,0.00014465,2]
[423736630,1780350641000,-956.10799372,0.00014465,2]
[423736639,1780350641000,-956.10799372,0.00014465,2]
[423736636,1780350641000,-956.10799372,0.00014465,2]
[423736633,1780350641000,-956.10799372,0.00014465,2]
[423736634,1780350641000,-956.10799372,0.00014465,2]
[423736640,1780350641000,-956.10799372,0.00014465,2]
[423736635,1780350641000,-956.10799372,0.00014465,2]
[423736637,1780350641000,-956.10799372,0.00014465,2]
[423736642,1780350641000,-956.10799372,0.00014465,2]
[423736641,1780350641000,-956.10799372,0.00014465,2]
[423736646,1780350641000,-956.10799372,0.00014465,2]
[423736644,1780350641000,-956.10799372,0.00014465,2]
[423736645,1780350641000,-956.10799372,0.00014465,2]
[423736643,1780350641000,-956.10799372,0.00014465,2]
[423736706,1780350642000,-200.0,0.00014617,2]
[423736691,1780350642000,-5000.0,0.00014581,2]
[423736688,1780350642000,-150.0,0.00014578,2]
[423736690,1780350642000,-3958.78987934,0.00014581,2]
[423736692,1780350642000,-150.0,0.00014581,2]
[423736695,1780350642000,-4149.716,0.00014593,2]
[423736689,1780350642000,-6144.23110557,0.00014581,2]
[423736705,1780350642000,-6144.23110551,0.00014616,2]
[423736700,1780350642000,-2008.0,0.000146,2]
[423736697,1780350642000,-500.0,0.00014594,2]
[423736704,1780350642000,-595.54,0.00014616,2]
[423736701,1780350642000,-1000.0,0.000146,2]
[423736694,1780350642000,-5475.53831458,0.00014585,2]
[423736696,1780350642000,-255.6,0.00014593,2]
[423736702,1780350642000,-200.0,0.00014606,2]
[423736686,1780350642000,-500.0,0.00014576,2]
[423736698,1780350642000,-200.0,0.00014594,2]
[423736684,1780350642000,-675.64,0.00014576,2]
[423736666,1780350642000,-150.0,0.00014487,2]
[423736687,1780350642000,-500.0,0.00014576,2]
[423736667,1780350642000,-161.599505,0.00014495,2]
[423736668,1780350642000,-474.50808334,0.00014495,2]
[423736699,1780350642000,-615.41239841,0.000146,2]
[423736669,1780350642000,-4839.43072629,0.00014495,2]
[423736675,1780350642000,-5475.53831458,0.0001454,2]
[423736673,1780350642000,-150.0,0.00014537,2]
[423736677,1780350642000,-2000.0,0.00014547,2]
[423736676,1780350642000,-150.0,0.00014541,2]
[423736672,1780350642000,-150.0,0.00014537,2]
[423736670,1780350642000,-391.8726,0.00014495,2]
[423736678,1780350642000,-500.0,0.00014547,2]
[423736680,1780350642000,-150.0,0.00014558,2]
[423736679,1780350642000,-275.0,0.00014548,2]
[423736681,1780350642000,-200.0,0.00014574,2]
[423736682,1780350642000,-500.0,0.00014576,2]
[423736665,1780350642000,-250.9003096,0.00014467,2]
[423736693,1780350642000,-200.0,0.00014584,2]
[423736685,1780350642000,-699.16,0.00014576,2]
[423736703,1780350642000,-150.0,0.00014612,2]
[423736671,1780350642000,-150.0,0.000145,2]
[423736709,1780350642000,-200.0,0.00014628,2]
[423736737,1780350642000,-500.0,0.0001468,2]
[423736738,1780350642000,-723.62,0.0001468,2]
[423736739,1780350642000,-723.62,0.0001468,2]
[423736742,1780350642000,-723.62,0.0001468,2]
[423736744,1780350642000,-645.91,0.0001468,2]
[423736741,1780350642000,-723.62,0.0001468,2]
[423736748,1780350642000,-675.64,0.0001468,2]
[423736749,1780350642000,-675.64,0.0001468,2]
[423736746,1780350642000,-675.64,0.0001468,2]
[423736747,1780350642000,-675.64,0.0001468,2]
[423736743,1780350642000,-645.91,0.0001468,2]
[423736740,1780350642000,-723.62,0.0001468,2]
[423736745,1780350642000,-645.91,0.0001468,2]
[423736751,1780350642000,-699.16,0.0001468,2]
[423736752,1780350642000,-699.16,0.0001468,2]
[423736750,1780350642000,-675.64,0.0001468,2]
[423736707,1780350642000,-150.0,0.00014622,2]
[423736736,1780350642000,-500.0,0.0001468,2]
[423736732,1780350642000,-500.0,0.0001468,2]
[423736683,1780350642000,-723.62,0.00014576,2]
[423736731,1780350642000,-500.0,0.0001468,2]
[423736735,1780350642000,-500.0,0.0001468,2]
[423736716,1780350642000,-6144.23110551,0.00014652,2]
[423736714,1780350642000,-615.41239839,0.0001465,2]
[423736712,1780350642000,-5475.53831458,0.0001463,2]
[423736711,1780350642000,-163.0,0.0001463,2]
[423736719,1780350642000,-150.0,0.00014665,2]
[423736718,1780350642000,-150.0,0.00014662,2]
[423736708,1780350642000,-3958.78987932,0.00014627,2]
[423736721,1780350642000,-1936.40117543,0.0001467,2]
[423736722,1780350642000,-1000.0,0.0001467,2]
[423736724,1780350642000,-697.72821415,0.0001467,2]
[423736727,1780350642000,-500.0,0.00014679,2]
[423736726,1780350642000,-5475.53831458,0.00014675,2]
[423736729,1780350642000,-500.0,0.0001468,2]
[423736728,1780350642000,-500.0,0.00014679,2]
[423736730,1780350642000,-500.0,0.0001468,2]
[423736733,1780350642000,-500.0,0.0001468,2]
[423736734,1780350642000,-500.0,0.0001468,2]
[423736725,1780350642000,-3958.78987932,0.00014672,2]
[423736764,1780350643000,-500.0,0.0001468,2]
[423736763,1780350643000,-500.0,0.0001468,2]
[423736757,1780350643000,-500.0,0.0001468,2]
[423736754,1780350643000,-699.16,0.0001468,2]
[423736758,1780350643000,-500.0,0.0001468,2]
[423736761,1780350643000,-500.0,0.0001468,2]
[423736756,1780350643000,-500.0,0.0001468,2]
[423736759,1780350643000,-500.0,0.0001468,2]
[423736753,1780350643000,-699.16,0.0001468,2]
[423736765,1780350643000,-500.0,0.0001468,2]
[423736760,1780350643000,-500.0,0.0001468,2]
[423736755,1780350643000,-699.16,0.0001468,2]
[423736774,1780350643000,-500.0,0.0001468,2]
[423736766,1780350643000,-500.0,0.0001468,2]
[423736762,1780350643000,-500.0,0.0001468,2]
[423736777,1780350643000,-500.0,0.0001468,2]
[423736778,1780350643000,-500.0,0.0001468,2]
[423736779,1780350643000,-500.0,0.0001468,2]
[423736780,1780350643000,-186501.49731963,0.00014681,2]
[423736775,1780350643000,-500.0,0.0001468,2]
[423736773,1780350643000,-500.0,0.0001468,2]
[423736776,1780350643000,-500.0,0.0001468,2]
[423736771,1780350643000,-595.54,0.0001468,2]
[423736772,1780350643000,-595.54,0.0001468,2]
[423736769,1780350643000,-500.0,0.0001468,2]
[423736767,1780350643000,-500.0,0.0001468,2]
[423736770,1780350643000,-595.54,0.0001468,2]
[423736768,1780350643000,-500.0,0.0001468,2]
[423736781,1780350645000,-160.0,0.00013962,2]
[423736786,1780350646000,-67.85831051,0.0001468,2]
[423736782,1780350646000,-1103.5502,0.000145,2]
[423736785,1780350646000,-432.14168949,0.0001468,2]
[423736784,1780350646000,-500.0,0.0001468,2]
[423736787,1780350646000,-498.92524973,0.00014681,2]
[423736783,1780350646000,-500.0,0.0001468,2]
[423736788,1780350646000,-1698.77067886,0.00014681,2]
[423736795,1780350647000,-121070.40068941,0.00014681,2]
[423736794,1780350647000,-24.21633259,0.00014681,2]
[423736801,1780350798000,500.0,0.00027934,120]
[423736800,1780350798000,513.88898,0.00025586,120]
[423736802,1780350905000,193.0,0.00027145,120]
[423736803,1780350906000,193.0,0.00028502,120]
[423736804,1780350909000,500.0,0.0003013,120]
[423736805,1780351041000,501.7,0.00030136,120]
[423736806,1780351239000,500.0,0.0003013,120]
[423736807,1780351467000,-152.0,0.00011977,7]
[423736808,1780351482000,-5564.68666336,0.00011977,5]
[423736809,1780351519000,-175.51264232,0.00011877,2]
[423736810,1780351536000,-300.0,0.00011976,2]
[423736811,1780351573000,-5564.68666336,0.00011977,5]
[423736812,1780351589000,-5564.68666336,0.00011977,5]
[423736813,1780351626000,-300.0,0.00011976,2]
[423736814,1780351641000,-1200.0,0.00011976,2]
[423736817,1780351656000,-28.34946746,0.00011977,5]
[423736818,1780351710000,-1230.09181537,0.00012014,2]
[423736819,1780351726000,-150.0,0.00012099,2]
[423736820,1780351756000,-150.0,0.00012219,2]
[423736822,1780351757000,-150.0,0.00012303,2]
[423736821,1780351757000,2000.0,0.00030135,120]
[423736841,1780351831000,-2000.0,0.00013082,2]
[423736835,1780351831000,-12.05,0.00012303,2]
[423736836,1780351831000,-155.5,0.00012594,2]
[423736834,1780351831000,-338.83149089,0.00011958,2]
[423736837,1780351831000,-447.61850911,0.00012622,2]
[423736838,1780351831000,-552.38149089,0.00012622,2]
[423736843,1780351831000,-500.0,0.00013151,2]
[423736842,1780351831000,-2140.93,0.00013126,2]
[423736839,1780351831000,-1276.98,0.00012941,2]
[423736840,1780351831000,-1432.9,0.00012963,2]
[423736844,1780351831000,-300.0,0.00013172,2]
[423736845,1780351831000,-300.0,0.00013172,2]
[423736847,1780351831000,-16963.48,0.00013173,2]
[423736848,1780351831000,-159.29,0.00013247,2]
[423736849,1780351831000,-166.38,0.00013343,2]
[423736852,1780351831000,-693.42312844,0.00013356,7]
[423736850,1780351831000,-500.0,0.00013356,2]
[423736846,1780351831000,-1200.0,0.00013172,2]
[423736851,1780351831000,-900.0,0.00013356,2]
[423736853,1780351832000,-150.0,0.00013488,2]
[423736857,1780351832000,-150.0,0.00013488,2]
[423736854,1780351832000,-150.0,0.00013488,2]
[423736855,1780351832000,-150.0,0.00013488,2]
[423736869,1780351832000,-20580.94448176,0.00013599,2]
[423736871,1780351832000,-406.99785782,0.00013599,2]
[423736870,1780351832000,-850.15720383,0.00013599,2]
[423736865,1780351832000,-151.0,0.00013596,2]
[423736872,1780351832000,-109831.35820609,0.00013599,2]
[423736864,1780351832000,-269.12789941,0.00013589,2]
[423736859,1780351832000,-150.0,0.00013488,2]
[423736867,1780351832000,-300.0,0.00013598,2]
[423736862,1780351832000,-150.0,0.00013569,2]
[423736861,1780351832000,-150.0,0.00013528,2]
[423736882,1780351837000,-1167.55517491,0.00013599,2]
[423736881,1780351837000,-1733.12147196,0.00013599,2]
[423736880,1780351837000,-1027.1,0.00013599,2]
[423736929,1780351838000,-693.42312844,0.00014024,7]
[423736937,1780351838000,-150.0,0.00014136,2]
[423736925,1780351838000,-150.0,0.00014014,2]
[423736931,1780351838000,-350.0,0.00014053,2]
[423736919,1780351838000,-500.0,0.00013972,2]
[423736921,1780351838000,-166.66,0.00013973,2]
[423736922,1780351838000,-150.0,0.00013974,2]
[423736924,1780351838000,-150.0,0.00014014,2]
[423736933,1780351838000,-150.0,0.00014055,2]
[423736923,1780351838000,-60000.0,0.0001399,2]
[423736947,1780351838000,-166.66,0.00014247,2]
[423736938,1780351838000,-221.07019279,0.00014144,2]
[423736936,1780351838000,-166.66,0.0001411,2]
[423736946,1780351838000,-500.0,0.00014245,2]
[423736942,1780351838000,-150.0,0.00014217,2]
[423736940,1780351838000,-227.76928953,0.00014144,2]
[423736945,1780351838000,-150.0,0.00014237,2]
[423736943,1780351838000,-150.0,0.00014237,2]
[423736941,1780351838000,-150.0,0.00014176,2]
[423736944,1780351838000,-150.0,0.00014237,2]
[423736926,1780351838000,-244.86363879,0.00014014,2]
[423736935,1780351838000,-150.0,0.00014095,2]
[423736927,1780351838000,-150.0,0.00014014,2]
[423736900,1780351838000,-166.66,0.00013836,2]
[423736909,1780351838000,-150.0,0.00013852,2]
[423736883,1780351838000,-422.62279061,0.00013599,2]
[423736887,1780351838000,-150.0,0.00013609,2]
[423736884,1780351838000,-3403.0083354,0.00013599,2]
[423736886,1780351838000,-1354061.88699126,0.00013599,2]
[423736885,1780351838000,-6515.24748636,0.00013599,2]
[423736889,1780351838000,-150.0,0.0001365,2]
[423736899,1780351838000,-150.0,0.00013812,2]
[423736890,1780351838000,-150.0,0.0001369,2]
[423736888,1780351838000,-693.42312844,0.00013623,7]
[423736917,1780351838000,-500.0,0.00013949,2]
[423736891,1780351838000,-195.43775586,0.00013692,2]
[423736897,1780351838000,-150.0,0.00013731,2]
[423736898,1780351838000,-150.0,0.00013771,2]
[423736894,1780351838000,-166.66,0.00013699,2]
[423736892,1780351838000,-721.22,0.00013699,2]
[423736893,1780351838000,-200.0,0.00013699,2]
[423736896,1780351838000,-150.0,0.00013699,2]
[423736913,1780351838000,-160.0,0.00013911,2]
[423736915,1780351838000,-150.0,0.00013933,2]
[423736911,1780351838000,-150.0,0.00013893,2]
[423736895,1780351838000,-3623.42,0.00013699,2]
[423736948,1780351838000,-150.0,0.00014257,2]
[423736983,1780351838000,-581.71354193,0.0001426,2]
[423736959,1780351838000,-581.71354193,0.0001426,2]
[423736979,1780351838000,-581.71354193,0.0001426,2]
[423736980,1780351838000,-581.71354193,0.0001426,2]
[423736974,1780351838000,-581.71354193,0.0001426,2]
[423736982,1780351838000,-581.71354193,0.0001426,2]
[423736981,1780351838000,-581.71354193,0.0001426,2]
[423736978,1780351838000,-581.71354193,0.0001426,2]
[423736976,1780351838000,-581.71354193,0.0001426,2]
[423736984,1780351838000,-581.71354193,0.0001426,2]
[423736987,1780351838000,-581.71354193,0.0001426,2]
[423736993,1780351838000,-581.71354193,0.0001426,2]
[423736991,1780351838000,-581.71354193,0.0001426,2]
[423736986,1780351838000,-581.71354193,0.0001426,2]
[423736995,1780351838000,-581.71354193,0.0001426,2]
[423736988,1780351838000,-581.71354193,0.0001426,2]
[423736994,1780351838000,-581.71354193,0.0001426,2]
[423736989,1780351838000,-581.71354193,0.0001426,2]
[423736992,1780351838000,-581.71354193,0.0001426,2]
[423736985,1780351838000,-581.71354193,0.0001426,2]
[423736997,1780351838000,-581.71354193,0.0001426,2]
[423736996,1780351838000,-581.71354193,0.0001426,2]
[423736949,1780351838000,-300.0,0.00014259,2]
[423736977,1780351838000,-581.71354193,0.0001426,2]
[423736975,1780351838000,-581.71354193,0.0001426,2]
[423736990,1780351838000,-581.71354193,0.0001426,2]
[423736973,1780351838000,-581.71354193,0.0001426,2]
[423736950,1780351838000,-156.21168621,0.0001426,2]
[423736972,1780351838000,-581.71354193,0.0001426,2]
[423736951,1780351838000,-500.0,0.0001426,2]
[423736953,1780351838000,-581.71354193,0.0001426,2]
[423736954,1780351838000,-296.61303949,0.0001426,2]
[423736957,1780351838000,-581.71354193,0.0001426,2]
[423736955,1780351838000,-581.71354193,0.0001426,2]
[423736956,1780351838000,-581.71354193,0.0001426,2]
[423736958,1780351838000,-581.71354193,0.0001426,2]
[423736960,1780351838000,-581.71354193,0.0001426,2]
[423736965,1780351838000,-581.71354193,0.0001426,2]
[423736952,1780351838000,-500.0,0.0001426,2]
[423736963,1780351838000,-581.71354193,0.0001426,2]
[423736961,1780351838000,-581.71354193,0.0001426,2]
[423736971,1780351838000,-581.71354193,0.0001426,2]
[423736964,1780351838000,-581.71354193,0.0001426,2]
[423736967,1780351838000,-581.71354193,0.0001426,2]
[423736962,1780351838000,-581.71354193,0.0001426,2]
[423736968,1780351838000,-581.71354193,0.0001426,2]
[423736969,1780351838000,-581.71354193,0.0001426,2]
[423736966,1780351838000,-581.71354193,0.0001426,2]
[423736970,1780351838000,-581.71354193,0.0001426,2]
[423737040,1780351839000,-580.14134318,0.0001426,2]
[423737045,1780351839000,-11382.2532924,0.00014265,2]
[423737046,1780351839000,-150.0,0.00014298,2]
[423737034,1780351839000,-580.14134317,0.0001426,2]
[423737029,1780351839000,-580.14134317,0.0001426,2]
[423737027,1780351839000,-580.14134317,0.0001426,2]
[423737031,1780351839000,-580.14134317,0.0001426,2]
[423737028,1780351839000,-580.14134317,0.0001426,2]
[423737024,1780351839000,-580.14134317,0.0001426,2]
[423737039,1780351839000,-580.1413432,0.0001426,2]
[423737026,1780351839000,-580.14134317,0.0001426,2]
[423737038,1780351839000,-580.1413432,0.0001426,2]
[423737051,1780351839000,-666.0,0.00014364,2]
[423737036,1780351839000,-580.1413432,0.0001426,2]
[423737041,1780351839000,-5000.0,0.00014265,2]
[423737035,1780351839000,-580.14134317,0.0001426,2]
[423737043,1780351839000,-15920.42582784,0.00014265,2]
[423737044,1780351839000,-667.32084283,0.00014265,2]
[423737042,1780351839000,-2500.0,0.00014265,2]
[423737048,1780351839000,-150.0,0.00014338,2]
[423737058,1780351839000,-240.05919402,0.00014364,2]
[423737047,1780351839000,-15920.42582783,0.00014336,2]
[423737050,1780351839000,-2474.24367457,0.00014356,2]
[423737025,1780351839000,-580.14134317,0.0001426,2]
[423737055,1780351839000,-500.0,0.00014364,2]
[423737037,1780351839000,-580.1413432,0.0001426,2]
[423737030,1780351839000,-580.14134317,0.0001426,2]
[423737002,1780351839000,-581.71354193,0.0001426,2]
[423737021,1780351839000,-580.14134317,0.0001426,2]
[423737052,1780351839000,-300.0,0.00014364,2]
[423737005,1780351839000,-580.14134317,0.0001426,2]
[423737007,1780351839000,-580.14134317,0.0001426,2]
[423737006,1780351839000,-580.14134317,0.0001426,2]
[423736998,1780351839000,-581.71354193,0.0001426,2]
[423736999,1780351839000,-581.71354193,0.0001426,2]
[423737001,1780351839000,-581.71354193,0.0001426,2]
[423737000,1780351839000,-581.71354193,0.0001426,2]
[423737004,1780351839000,-580.14134317,0.0001426,2]
[423737003,1780351839000,-581.71354193,0.0001426,2]
[423737014,1780351839000,-580.14134317,0.0001426,2]
[423737013,1780351839000,-580.14134317,0.0001426,2]
[423737023,1780351839000,-580.14134317,0.0001426,2]
[423737011,1780351839000,-580.14134317,0.0001426,2]
[423737016,1780351839000,-580.14134317,0.0001426,2]
[423737020,1780351839000,-580.14134317,0.0001426,2]
[423737010,1780351839000,-580.14134317,0.0001426,2]
[423737018,1780351839000,-580.14134317,0.0001426,2]
[423737012,1780351839000,-580.14134317,0.0001426,2]
[423737019,1780351839000,-580.14134317,0.0001426,2]
[423737009,1780351839000,-580.14134317,0.0001426,2]
[423737017,1780351839000,-580.14134317,0.0001426,2]
[423737015,1780351839000,-580.14134317,0.0001426,2]
[423737022,1780351839000,-580.14134317,0.0001426,2]
[423737033,1780351839000,-580.14134317,0.0001426,2]
[423737032,1780351839000,-580.14134317,0.0001426,2]
[423737008,1780351839000,-580.14134317,0.0001426,2]
[423737056,1780351839000,-500.0,0.00014364,2]
[423737089,1780351839000,-500.0,0.00014364,2]
[423737054,1780351839000,-300.0,0.00014364,2]
[423737086,1780351839000,-500.0,0.00014364,2]
[423737088,1780351839000,-500.0,0.00014364,2]
[423737096,1780351839000,-500.0,0.00014364,2]
[423737095,1780351839000,-500.0,0.00014364,2]
[423737094,1780351839000,-500.0,0.00014364,2]
[423737090,1780351839000,-500.0,0.00014364,2]
[423737093,1780351839000,-500.0,0.00014364,2]
[423737112,1780351839000,-1976.09516634,0.00014365,2]
[423737091,1780351839000,-500.0,0.00014364,2]
[423737092,1780351839000,-265.99656761,0.00014364,2]
[423737097,1780351839000,-500.0,0.00014364,2]
[423737099,1780351839000,-500.0,0.00014364,2]
[423737085,1780351839000,-500.0,0.00014364,2]
[423737100,1780351839000,-872.74,0.00014364,2]
[423737102,1780351839000,-872.74,0.00014364,2]
[423737101,1780351839000,-872.74,0.00014364,2]
[423737105,1780351839000,-872.74,0.00014364,2]
[423737104,1780351839000,-872.74,0.00014364,2]
[423737106,1780351839000,-1176.16124217,0.00014365,3]
[423737107,1780351839000,-297852.84597396,0.00014365,2]
[423737113,1780351839000,-1221.94,0.00014365,2]
[423737109,1780351839000,-1386.35636678,0.00014365,2]
[423737111,1780351839000,-550.47943851,0.00014365,2]
[423737110,1780351839000,-1451.99375122,0.00014365,2]
[423737114,1780351839000,-3750.25431286,0.00014365,2]
[423737057,1780351839000,-292.7571741,0.00014364,2]
[423737103,1780351839000,-872.74,0.00014364,2]
[423737087,1780351839000,-500.0,0.00014364,2]
[423737098,1780351839000,-500.0,0.00014364,2]
[423737077,1780351839000,-500.0,0.00014364,2]
[423737074,1780351839000,-645.91,0.00014364,2]
[423737053,1780351839000,-300.0,0.00014364,2]
[423737059,1780351839000,-500.0,0.00014364,2]
[423737061,1780351839000,-442.73390128,0.00014364,2]
[423737062,1780351839000,-371.18538215,0.00014364,2]
[423737071,1780351839000,-645.91,0.00014364,2]
[423737064,1780351839000,-570.72,0.00014364,2]
[423737065,1780351839000,-570.72,0.00014364,2]
[423737066,1780351839000,-570.72,0.00014364,2]
[423737067,1780351839000,-570.72,0.00014364,2]
[423737060,1780351839000,-500.0,0.00014364,2]
[423737070,1780351839000,-645.91,0.00014364,2]
[423737069,1780351839000,-645.91,0.00014364,2]
[423737063,1780351839000,-570.72,0.00014364,2]
[423737049,1780351839000,-159.29,0.00014351,2]
[423737068,1780351839000,-570.72,0.00014364,2]
[423737081,1780351839000,-500.0,0.00014364,2]
[423737079,1780351839000,-500.0,0.00014364,2]
[423737076,1780351839000,-500.0,0.00014364,2]
[423737080,1780351839000,-500.0,0.00014364,2]
[423737078,1780351839000,-500.0,0.00014364,2]
[423737075,1780351839000,-645.91,0.00014364,2]
[423737082,1780351839000,-150.0,0.00014364,2]
[423737083,1780351839000,-500.0,0.00014364,2]
[423737073,1780351839000,-645.91,0.00014364,2]
[423737084,1780351839000,-500.0,0.00014364,2]
[423737072,1780351839000,-645.91,0.00014364,2]
[423737136,1780351840000,-150.0,0.00014419,2]
[423737133,1780351840000,-166.66,0.00014384,2]
[423737131,1780351840000,-667.32084277,0.00014371,2]
[423737126,1780351840000,-3063.71,0.00014364,2]
[423737135,1780351840000,-15920.42582783,0.00014406,2]
[423737137,1780351840000,-693.42312844,0.00014424,7]
[423737138,1780351840000,-420.0,0.00014443,2]
[423737139,1780351840000,-2474.24367457,0.00014446,2]
[423737141,1780351840000,-5000.0,0.00014461,2]
[423737130,1780351840000,-1500.0,0.00014365,2]
[423737134,1780351840000,-6515.75155571,0.0001439,2]
[423737132,1780351840000,-150.0,0.00014379,2]
[423737115,1780351840000,-459.67,0.00014364,2]
[423737127,1780351840000,-1230900.31188917,0.00014365,2]
[423737128,1780351840000,-500.0,0.00014365,2]
[423737125,1780351840000,-3063.71,0.00014364,2]
[423737121,1780351840000,-3063.71,0.00014364,2]
[423737120,1780351840000,-3063.71,0.00014364,2]
[423737122,1780351840000,-3063.71,0.00014364,2]
[423737123,1780351840000,-36584.5608427,0.00014365,2]
[423737124,1780351840000,-617.92565846,0.00014365,2]
[423737119,1780351840000,-512.03068928,0.00014364,2]
[423737116,1780351840000,-1362.87164236,0.00014364,2]
[423737118,1780351840000,-319.37141958,0.00014364,2]
[423737117,1780351840000,-409.76624878,0.00014364,2]
[423737144,1780351840000,-1235.47,0.00014484,2]
[423737129,1780351840000,-250.0,0.00014365,2]
[423737145,1780351840000,-1680.0,0.00014489,2]
[423737140,1780351840000,-150.0,0.0001446,2]
[423737143,1780351840000,-667.32084277,0.00014477,2]
[423737170,1780351840000,-500.0,0.0001458,2]
[423737168,1780351840000,-4103.67088923,0.00014578,2]
[423737164,1780351840000,-1276.98,0.00014559,2]
[423737163,1780351840000,-15920.42582783,0.00014547,2]
[423737167,1780351840000,-207.19116943,0.00014573,2]
[423737165,1780351840000,-163.0,0.0001456,2]
[423737169,1780351840000,-570.72,0.0001458,2]
[423737147,1780351840000,-6068.0,0.00014516,2]
[423737166,1780351840000,-15000.0,0.00014565,2]
[423737173,1780351840000,-150.0,0.00014581,2]
[423737172,1780351840000,-872.74,0.0001458,2]
[423737161,1780351840000,-151.0,0.00014542,2]
[423737162,1780351840000,-1130.40691877,0.00014547,2]
[423737158,1780351840000,-151.0,0.00014542,2]
[423737171,1780351840000,-365.01560358,0.0001458,2]
[423737159,1780351840000,-151.0,0.00014542,2]
[423737152,1780351840000,-243.0258948,0.00014532,2]
[423737146,1780351840000,-150.0,0.000145,2]
[423737142,1780351840000,-15920.42582783,0.00014477,2]
[423737148,1780351840000,-3639.0,0.00014516,2]
[423737154,1780351840000,-150.0,0.00014541,2]
[423737151,1780351840000,-269.12789941,0.00014532,2]
[423737149,1780351840000,-500.0,0.00014519,2]
[423737155,1780351840000,-300.0,0.00014541,2]
[423737157,1780351840000,-1500.0,0.00014542,2]
[423737150,1780351840000,-2180.82563021,0.00014525,2]
[423737160,1780351840000,-151.0,0.00014542,2]
[423737153,1780351840000,-2474.24367457,0.00014537,2]
[423737156,1780351840000,-252421.3746656,0.00014542,2]
[423737224,1780351841000,-611.76,0.0001468,2]
[423737214,1780351841000,-500.0,0.0001468,2]
[423737225,1780351841000,-611.76,0.0001468,2]
[423737217,1780351841000,-500.0,0.0001468,2]
[423737213,1780351841000,-151.0,0.00014678,2]
[423737204,1780351841000,-343893.2263255,0.00014673,2]
[423737210,1780351841000,-151.0,0.00014673,2]
[423737209,1780351841000,-161.212248,0.00014673,2]
[423737208,1780351841000,-151.0,0.00014673,2]
[423737207,1780351841000,-151.0,0.00014673,2]
[423737205,1780351841000,-500.0,0.00014673,2]
[423737234,1780351841000,-500.0,0.0001468,2]
[423737215,1780351841000,-500.0,0.0001468,2]
[423737231,1780351841000,-1720.49,0.0001468,2]
[423737219,1780351841000,-500.0,0.0001468,2]
[423737220,1780351841000,-591.18,0.0001468,2]
[423737221,1780351841000,-591.18,0.0001468,2]
[423737218,1780351841000,-500.0,0.0001468,2]
[423737223,1780351841000,-611.76,0.0001468,2]
[423737222,1780351841000,-591.18,0.0001468,2]
[423737226,1780351841000,-500.0,0.0001468,2]
[423737228,1780351841000,-424.50482648,0.0001468,2]